Cogmind - Beta 10.2 --- EXPLORER MODE // 2021.06.04 @ 20:50:20 // Winter2019/RPGLIKE Player: H_ Result: Destroyed by H-66 Slayer with Gauss Rifle Performance ------------- Evolutions (5) 2500 Regions Visited (18) 3600 Robots Destroyed (185) 925 Value Destroyed (8359) 8359 Prototype IDs (244) 4880 Alien Tech Used (1) 200 Bonus (4263) 4263 TOTAL SCORE: 24727 Bonus ------- High Alert Combat Kills 127 Follower Combat Kills 277 Aligned with FarCom 300 Met Data Miner 300 Used Data Conduit 3000 Met Imprinter 300 Pursued by Intercept 500 Friendly Fire -541 Cogmind --------- Core Integrity 0/600 Matter 300/300 Energy 170/170 System Corruption 0% Temperature Cool (0) Movement Flying (29) Location -5/Factory Parts ------- > --- POWER (3) -------- Micro Fission Core > --- PROPULSION (5) --- Cooled Cesium-ion Thruster Cooled Cesium-ion Thruster Cooled Cesium-ion Thruster Cooled Cesium-ion Thruster > --- UTILITY (10) ----- 0b10 Decoder Chip [Generic] 0b10 Decoder Chip [Looter] Layered Medium Armor Plating Experimental Thermal Shield EM Shield System Mapper Deep Network Scanner Ghost Barrier Quantum Router Improved Dynamic Insulation System > --- WEAPON (4) ------- Improved Lightning Gun Long-range Missile Launcher Improved Remote Datajack Force Lance > --- INVENTORY (6) ---- Protomatter-62 Micro Fission Core Long-range Terrain Scanner 0b10 Decoder Chip [Scout] Improved System Backup Module Peak State ------------ > --- POWER ------------ Micro Fission Core Micro Fission Core > --- PROPULSION ------- Cooled Cesium-ion Thruster Cooled Cesium-ion Thruster Cooled Cesium-ion Thruster Cooled Cesium-ion Thruster > --- UTILITY ---------- 0b10 Decoder Chip [Generic] 0b10 Decoder Chip [Looter] Improved Maneuvering Thrusters Layered Medium Armor Plating EM Shield System Mapper Deep Network Scanner Ghost Barrier Quantum Router Improved Dynamic Insulation System > --- WEAPON ----------- Improved Lightning Gun Long-range Missile Launcher Improved Remote Datajack Force Lance > --- INVENTORY -------- Long-range Terrain Scanner 0b10 Decoder Chip [Scout] Experimental Thermal Shield Experimental Thermal Shield Improved System Backup Module Core Expander [Rating: 133] Favorites ----------- Power Micro Fission Core Engine Makeshift Power Source Power Core Micro Fission Core Propulsion Cooled VTOL Module Flight Unit Cooled VTOL Module Utility Advanced Melee Analysis Suite Device Long-range Terrain Scanner Processor Advanced Melee Analysis Suite Hackware Improved System Shield Protection Layered Medium Armor Plating Weapon Remote Datajack Energy Gun Improved Lightning Gun Energy Cannon Cooled Particle Cannon Ballistic Gun Autogun Ballistic Cannon Assault Cannon Launcher Long-range Missile Launcher Special Weapon Remote Datajack Piercing Weapon Force Lance Build | -11 -10 -10 -10 -9 -8 -7 -7 -7 -7 -6 -6 -6 -6 -6 -6 -6 -5 -5 ------- Run | Scr Mat Min Exi Min Mat Fac Low Low Zio Pro Fac Was Fac Low Low Dat Pro Fac Slots Evolved 17 | . . . 7 . 1 2 . . 1 1 1 2 . . . 1 . 1 Power 1 | . . . 1 . . . . . . . . . . . . . . . Propulsion 4 | . . . 2 . . 1 . . . . . . . . . . . 1 Utility 9 | . . . 3 . 1 1 . . . 1 1 1 . . . 1 . . Weapon 3 | . . . 1 . . . . . 1 . . 1 . . . . . . Parts Attached 127 | . 2 1 . . 12 23 . 2 7 8 32 4 10 1 4 11 2 8 Power 11 | . . . . . 2 3 . . 1 . . . 3 . . . . 2 Engine 4 | . . . . . 1 2 . . 1 . . . . . . . . . Core 7 | . . . . . 1 1 . . . . . . 3 . . . . 2 Reactor . | . . . . . . . . . . . . . . . . . . . Propulsion 20 | . 1 . . . 5 6 . . . . 5 . 3 . . . . . Treads . | . . . . . . . . . . . . . . . . . . . Leg . | . . . . . . . . . . . . . . . . . . . Wheel . | . . . . . . . . . . . . . . . . . . . Hover . | . . . . . . . . . . . . . . . . . . . Flight 20 | . 1 . . . 5 6 . . . . 5 . 3 . . . . . Utility 62 | . 1 . . . 1 9 . 2 4 3 14 3 2 1 4 11 2 5 Device 38 | . 1 . . . . 4 . 2 3 2 10 1 2 1 1 5 1 5 Storage . | . . . . . . . . . . . . . . . . . . . Processor 8 | . . . . . . 1 . . . 1 1 1 . . 3 1 . . Hackware 14 | . . . . . 1 4 . . 1 . 3 1 . . . 4 . . Protection 2 | . . . . . . . . . . . . . . . . 1 1 . Artifact . | . . . . . . . . . . . . . . . . . . . Weapon 34 | . . 1 . . 4 5 . . 2 5 13 1 2 . . . . 1 Energy Gun 3 | . . . . . 1 1 . . . . . . 1 . . . . . Energy Cannon 5 | . . . . . 1 1 . . . . 2 1 . . . . . . Ballistic Gun 2 | . . . . . . 1 . . . 1 . . . . . . . . Ballistic Cannon 1 | . . . . . 1 . . . . . . . . . . . . . Launcher 12 | . . 1 . . . . . . . . 10 . 1 . . . . . Special Weapon 4 | . . . . . . 1 . . 1 1 . . . . . . . 1 Impact Weapon . | . . . . . . . . . . . . . . . . . . . Slashing Weapon . | . . . . . . . . . . . . . . . . . . . Piercing Weapon 7 | . . . . . 1 1 . . 1 3 1 . . . . . . . Special Melee Weapon . | . . . . . . . . . . . . . . . . . . . Unidentified Prototypes 8 | . . . . . . 1 . . 1 . 1 . 1 . . 4 . . Parts Lost 2 | . . . . . . . . . 1 . . . . . . . . 1 Power . | . . . . . . . . . . . . . . . . . . . Propulsion . | . . . . . . . . . . . . . . . . . . . Utility 1 | . . . . . . . . . . . . . . . . . . 1 Weapon 1 | . . . . . . . . . 1 . . . . . . . . . Highest Loss Streak 1 | . . . . . . . . . 1 . . . . . . . . 1 Average Slot Usage (%) 94 | . 28 71 72 27 62 90 100 100 99 99 99 96 99 100 100 99 100 96 Engine 4 | . . . . . 2 11 7 7 6 6 5 5 2 . . . . . Core 6 | . . . . . 5 . 7 7 6 6 5 5 7 10 10 10 10 8 Flight 23 | . 5 25 24 9 25 27 28 28 26 25 23 21 20 21 21 20 20 19 Device 14 | . 23 25 24 9 8 17 14 14 13 12 16 15 15 15 15 14 10 13 Processor 9 | . . . . . . . 7 7 6 11 11 15 15 15 26 30 15 10 Hackware 15 | . . . . . 4 16 21 21 20 18 17 15 15 15 4 1 20 19 Energy Gun 1 | . . . . . . 1 . . . . . . 4 5 5 5 5 4 Energy Cannon 2 | . . . . . 3 5 7 7 5 . 1 2 . . . . . . Launcher 3 | . . 21 24 9 7 . . . . . 2 5 4 5 5 5 5 4 Special Weapon 2 | . . . . . . . . . 3 4 5 5 5 5 5 5 5 4 Piercing Weapon 5 | . . . . . . 7 7 7 6 9 5 5 5 5 5 5 5 4 Naked Turns 12 | . 12 . . . . . . . . . . . . . . . . . Heaviest Build 48 | . 1 5 5 5 16 25 21 22 26 24 34 45 45 39 39 44 44 48 Greatest Support 68 | 3 4 9 14 14 31 43 41 41 41 41 49 49 64 52 52 52 52 68 Greatest Overweight (x) 1 | . . 1 . . . . . . . . . . . . . . . . Average Overweight (x) . | . . . . . . . . . . . . . . . . . . . Largest Inventory Capacity 6 | . . . 3 3 3 4 6 6 6 6 6 6 6 6 6 6 6 6 Average Capacity 5 | . . . . 3 3 3 5 6 6 6 6 6 6 6 6 6 6 6 Most Carried 6 | . . . 1 2 3 4 3 6 6 6 6 6 6 6 6 6 6 6 Average Carried 4 | . . . . 1 1 2 3 5 5 5 4 5 5 6 4 4 5 5 Final Capacity 6 | . . . 3 3 3 4 6 6 6 6 6 6 6 6 6 6 6 6 Final Carried 6 | . . . 1 2 2 3 3 6 6 5 6 5 6 6 4 5 6 5 Class Distribution -------------------- 44% | Wizard-Sprinter 36% | Wizard-Scout 8% | Hacker-Scout 5% | Machinist-Sprinter 4% | Hacker-Mutant Dominant Class ---------------- Hacker-Mutant | -10/Materials Hacker-Mutant | -10/Mines Hacker-Mutant | -10/Exiles Hacker-Scout | -9/Mines Hacker-Scout | -8/Materials Wizard-Scout | -7/Factory Wizard-Sprinter | -7/Lower Caves Wizard-Sprinter | -7/Lower Caves Wizard-Sprinter | -7/Zion Wizard-Sprinter | -6/Proximity Caves Wizard-Scout | -6/Factory Wizard-Scout | -6/Waste Wizard-Scout | -6/Factory Wizard-Sprinter | -6/Lower Caves Machinist-Sprinter | -6/Lower Caves Machinist-Sprinter | -6/Data Miner Wizard-Sprinter | -5/Proximity Caves Wizard-Scout | -5/Factory Resources | -11 -10 -10 -10 -9 -8 -7 -7 -7 -7 -6 -6 -6 -6 -6 -6 -6 -5 -5 ----------- Run | Scr Mat Min Exi Min Mat Fac Low Low Zio Pro Fac Was Fac Low Low Dat Pro Fac Matter Collected 1759 | 120 61 49 . 44 140 249 . 20 57 97 335 20 130 35 110 120 75 97 Remotely . | . . . . . . . . . . . . . . . . . . . Salvage Created 8784 | . . . . 51 406 1281 235 298 . 361 2055 . 831 633 438 433 764 998 Parts 463 | . . . . 2 12 66 14 25 . 25 122 . 42 21 31 22 32 49 Haulers Intercepted . | . . . . . . . . . . . . . . . . . . . Recyclers Shooed . | . . . . . . . . . . . . . . . . . . . Parts Field Recycled . | . . . . . . . . . . . . . . . . . . . Retrieved Matter . | . . . . . . . . . . . . . . . . . . . Parts Self-Destructed . | . . . . . . . . . . . . . . . . . . . Prevented . | . . . . . . . . . . . . . . . . . . . Kills | -11 -10 -10 -10 -9 -8 -7 -7 -7 -7 -6 -6 -6 -6 -6 -6 -6 -5 -5 ------- Run | Scr Mat Min Exi Min Mat Fac Low Low Zio Pro Fac Was Fac Low Low Dat Pro Fac Combat Hostiles Destroyed 158 | . . . . 4 5 20 5 10 . 7 35 . 12 10 18 4 15 13 Melee 93 | . . . . . 1 7 . 2 . 7 29 . 12 7 5 4 6 13 Guns 8 | . . . . . 2 1 . . . . . . . 1 4 . . . Cannons 29 | . . . . . 2 11 5 8 . . 3 . . . . . . . AOE 21 | . . . . 4 . . . . . . . . . 1 8 . 8 . Classes Destroyed 13 | . . . . 2 3 3 . 1 . 1 1 . . . 1 . 1 . Recycler 2 | . . . . . . 1 . . . . . . 1 . . . . . Minesweeper 1 | . . . . . . . . 1 . . . . . . . . . . Watcher 20 | . . . . . 1 4 . . . . 8 . 5 . . . . 2 Swarmer 47 | . . . . 2 . 3 3 7 . 2 8 . 4 3 7 . 8 . Grunt 38 | . . . . 2 2 9 . . . . 13 . 2 3 5 . 2 . Brawler 2 | . . . . . . . . . . . . . . . 2 . . . Duelist 7 | . . . . . . . . . . . 1 . 2 2 2 . . . Researcher 1 | . . . . . . . . . . . . . . . . . 1 . Sentry 21 | . . . . . 3 3 . 1 . . 5 . 3 1 . . 1 4 Hunter 18 | . . . . . . 2 1 . . 3 3 . . . 2 . 3 4 Programmer 15 | . . . . . . 3 1 2 . 1 4 . 1 . . . . 3 Behemoth 3 | . . . . . . . . . . 1 1 . . 1 . . . . Enhanced Grunt 4 | . . . . . . . . . . . . . . . . 4 . . Tracker 1 | . . . . . . . . . . . . . . . . . . 1 Combat Programmer 1 | . . . . . . . . . . . . . . . . . . 1 Zionite 1 | . . . . . 1 . . . . . . . . . . . . . Thug 2 | . . . . . 1 . . . . . . . . . . . 1 . Best Kill Streak 11 | . . . . 2 3 11 3 5 . 3 6 . 6 6 7 4 6 3 Combat Bots Only 8 | . . . . 2 3 8 3 5 . 3 6 . 5 6 7 3 6 3 Max Kills in Single Turn 4 | . . . . 2 1 1 1 1 . 1 1 . 1 1 3 1 4 1 Gunslinging . | . . . . . . . . . . . . . . . . . . . Exploded 4 | . . . . 2 . . . . . . . . . 1 3 . 4 . Melee 1 | . . . . . 1 1 . 1 . 1 1 . 1 1 1 1 1 1 Uniques/NPCs Destroyed 1 | . . . . . . . . . . . . . . . . 1 . . Data Miner (-6/Data Miner) Combat | -11 -10 -10 -10 -9 -8 -7 -7 -7 -7 -6 -6 -6 -6 -6 -6 -6 -5 -5 -------- Run | Scr Mat Min Exi Min Mat Fac Low Low Zio Pro Fac Was Fac Low Low Dat Pro Fac Damage Taken 6012 | . 54 51 . 21 275 457 59 302 . 353 1472 . 340 352 352 714 238 972 Core 4711 | . 50 40 . 19 226 355 44 254 . 290 1178 . 264 283 299 570 168 671 Absorbed by Shields . | . . . . . . . . . . . . . . . . . . . Redirected to Core 3671 | . 9 31 . 6 164 290 44 161 . 212 930 . 220 225 179 522 138 540 Core Remaining (%) 88 | 100 . . . 100 62 . . . . 82 . . . . . . 100 . Volleys Fired 206 | . . . . 4 17 52 11 31 3 1 24 . 2 21 28 . 11 1 Largest 2 | . . . . 1 1 1 1 1 1 1 1 . 1 1 2 . 1 1 Hottest 103 | . . . . 33 80 90 90 90 90 23 69 . 30 60 103 . 60 40 Shots Fired 207 | . . . . 4 17 52 11 31 2 1 24 . 2 21 30 . 11 1 Gun 78 | . . . . . 7 22 . . . 1 . . . 18 24 . 6 . Cannon 105 | . . . . . 10 28 11 31 2 . 23 . . . . . . . Launcher 12 | . . . . 4 . . . . . . . . . 1 4 . 3 . Special 12 | . . . . . . 2 . . . . 1 . 2 2 2 . 2 1 Kinetic 8 | . . . . . 4 3 . . . 1 . . . . . . . . Thermal 79 | . . . . . 7 28 11 31 2 . . . . . . . . . Explosive 12 | . . . . 4 . . . . . . . . . 1 4 . 3 . Electromagnetic 96 | . . . . . 6 19 . . . . 23 . . 18 24 . 6 . Robot Hit Streak 30 | . . . . 2 24 30 5 11 . 4 19 . 10 29 9 . 5 . Robot Miss Streak 2 | . . . . 1 1 1 1 1 . . 1 . . 1 2 . 1 1 Penetration Max . | . . . . . . . . . . . . . . . . . . . Secondary Targets . | . . . . . . . . . . . . . . . . . . . Shots Hit Robots 433 | . . . . 2 24 69 6 27 . 24 94 . 38 37 35 12 24 41 Core Hits 247 | . . . . 6 13 35 5 12 . 13 51 . 21 14 28 8 20 21 Critical Hits 28 | . . . . . . 2 . . . . 10 . 4 1 1 3 1 6 Critical Kills 17 | . . . . . . 1 . . . . 7 . 3 . . 2 1 3 Critical Parts Destroyed 10 | . . . . . . 1 . . . . 3 . 1 1 1 . . 3 Melee Attacks 286 | . . . . . 7 29 . 2 . 24 86 . 37 17 11 12 18 43 Impact . | . . . . . . . . . . . . . . . . . . . Slashing . | . . . . . . . . . . . . . . . . . . . Piercing 286 | . . . . . 7 29 . 2 . 24 86 . 37 17 11 12 18 43 Sneak Attacks 17 | . . . . . 1 7 . . . . 1 . 3 . 1 1 2 1 Combat Hostiles 8 | . . . . . . 4 . . . . . . 1 . 1 . 1 1 Follow-up Attacks 1 | . . . . . . . . . . 1 . . . . . . . . Damage Inflicted 24687 | . . . . 257 769 2680 278 1109 . 1268 5399 . 2473 1928 2410 1001 2453 2662 Guns 1315 | . . . . . 197 219 . . . 18 . . . 306 479 . 96 . Cannons 3400 | . . . . . 277 1172 278 1012 . . 661 . . . . . . . Explosions 2097 | . . . . 257 . . . . . . 63 . . 132 984 . 661 . Melee 17875 | . . . . . 295 1289 . 97 . 1250 4675 . 2473 1490 947 1001 1696 2662 Ramming . | . . . . . . . . . . . . . . . . . . . Kinetic 172 | . . . . . 105 49 . . . 18 . . . . . . . . Thermal 2722 | . . . . . 197 1172 278 1012 . . 63 . . . . . . . Explosive 2034 | . . . . 257 . . . . . . . . . 132 984 . 661 . Electromagnetic 1884 | . . . . . 172 170 . . . . 661 . . 306 479 . 96 . Impact . | . . . . . . . . . . . . . . . . . . . Slashing . | . . . . . . . . . . . . . . . . . . . Piercing 17875 | . . . . . 295 1289 . 97 . 1250 4675 . 2473 1490 947 1001 1696 2662 Highest Corruption 1 | . . . . . . . . 1 . . 1 . . . . . . . Average Corruption 1 | . . . . . . . . 1 . . 1 . . . . . . . Corruption Purged 2 | . . . . . . . . 1 . . 1 . . . . . . . Effects 6 | . . . . . . . . . . . 6 . . . . . . . Message Errors 1 | . . . . . . . . . . . 1 . . . . . . . Energy Discharges 2 | . . . . . . . . . . . 2 . . . . . . . Data Loss (minor) 2 | . . . . . . . . . . . 2 . . . . . . . Targeting Errors 1 | . . . . . . . . . . . 1 . . . . . . . Overload Shots 31 | . . . . . . 13 4 11 3 . . . . . . . . . Effects 3 | . . . . . . 1 . . 2 . . . . . . . . . Energy Bleed 1 | . . . . . . 1 . . . . . . . . . . . . Meltdown 2 | . . . . . . . . . 2 . . . . . . . . . Overflow Damage 2198 | . . . . 18 75 170 5 131 . 181 354 . 355 292 164 . 324 129 Projectiles 223 | . . . . . 7 80 5 131 . . . . . . . . . . Explosions 42 | . . . . 18 . . . . . . . . . 17 4 . 3 . Melee 1933 | . . . . . 68 90 . . . 181 354 . 355 275 160 . 321 129 Knockbacks 2 | . . . . . 2 . . . . . . . . . . . . . Impact . | . . . . . . . . . . . . . . . . . . . Kinetic 2 | . . . . . 2 . . . . . . . . . . . . . Secondary . | . . . . . . . . . . . . . . . . . . . Self-Inflicted Damage 86 | . . . . 17 . . . . . . 39 . . . 30 . . . Shots 3 | . . . . 1 . . . . . . 1 . . . 1 . . . Rammed . | . . . . . . . . . . . . . . . . . . . Targets Rammed . | . . . . . . . . . . . . . . . . . . . Kicked . | . . . . . . . . . . . . . . . . . . . Crushed . | . . . . . . . . . . . . . . . . . . . Highest Temperature 134 | . . . . . 134 48 . 30 . . 64 . 44 15 . . . 64 Average Temperature 36 | . . . . . 62 22 . 22 . . 35 . 18 15 . . . 41 Received Heat Transfer 1548 | . 48 . . . 171 198 . 45 . 24 543 . 132 87 45 156 45 54 Siege Activations . | . . . . . . . . . . . . . . . . . . . Robots Corrupted 7 | . . . . . . 1 . . . . 3 . . 1 1 . 1 . Combat Hostiles 7 | . . . . . . 1 . . . . 3 . . 1 1 . 1 . Parts Fried 16 | . . . . . 2 2 . . . . 9 . . . 2 . 1 . Impact Corruptions . | . . . . . . . . . . . . . . . . . . . Robots Melted . | . . . . . . . . . . . . . . . . . . . Combat Hostiles . | . . . . . . . . . . . . . . . . . . . Parts Melted 2 | . . . . . . 1 . 1 . . . . . . . . . . Heat Transferred 2958 | . . . . . 450 1131 285 1042 . . 50 . . . . . . . Parts Sabotaged . | . . . . . . . . . . . . . . . . . . . Parts Stolen . | . . . . . . . . . . . . . . . . . . . Parts Stripped . | . . . . . . . . . . . . . . . . . . . Power Chain Reactions 1 | . . . . . . . . . . . 1 . . . . . . . Missiles Intercepted . | . . . . . . . . . . . . . . . . . . . Alert | -11 -10 -10 -10 -9 -8 -7 -7 -7 -7 -6 -6 -6 -6 -6 -6 -6 -5 -5 ------- Run | Scr Mat Min Exi Min Mat Fac Low Low Zio Pro Fac Was Fac Low Low Dat Pro Fac Peak Influence 899 | . 177 48 . 100 405 899 . . . . 403 141 618 . . . . 376 Initial 96 | . . 48 . . 27 93 . . . . 43 96 70 . . . . . Average 134 | . 72 43 . 36 96 144 . . . . 107 122 280 . . . . 142 Maximum Alert Level 3 | . . . . . 2 3 . . . . 2 . 2 . . . . 1 Low Security (%) 76 | 100 100 100 . 100 78 82 . . . . 83 100 30 . . . . 64 Level 1 18 | . . . . . 19 9 . . . . 15 . 49 . . . . 35 Level 2 3 | . . . . . 2 3 . . . . . . 19 . . . . . Level 3 . | . . . . . . 3 . . . . . . . . . . . . Level 4 . | . . . . . . . . . . . . . . . . . . . Level 5 . | . . . . . . . . . . . . . . . . . . . High Security . | . . . . . . . . . . . . . . . . . . . Max Security . | . . . . . . . . . . . . . . . . . . . Squads Dispatched 26 | . 1 . . . 4 7 . . . . 6 . 3 . 1 . . 4 Investigation 14 | . 1 . . . 3 5 . . . . 4 . 1 . . . . . Extermination 6 | . . . . . . 2 . . . . 2 . 1 . . . . 1 Reinforcement 2 | . . . . . 1 . . . . . . . . . . . . 1 Assault 1 | . . . . . . . . . . . . . . . 1 . . . Garrison 1 | . . . . . . . . . . . . . 1 . . . . . Intercept 2 | . . . . . . . . . . . . . . . . . . 2 Construction Impeded . | . . . . . . . . . . . . . . . . . . . Haulers Reinforced . | . . . . . . . . . . . . . . . . . . . Stealth | -11 -10 -10 -10 -9 -8 -7 -7 -7 -7 -6 -6 -6 -6 -6 -6 -6 -5 -5 --------- Run | Scr Mat Min Exi Min Mat Fac Low Low Zio Pro Fac Was Fac Low Low Dat Pro Fac Distress Signals 9 | . 1 . . . 3 2 . . . . 2 . . . . . . 1 Communications Jammed . | . . . . . . . . . . . . . . . . . . . Distress Signals . | . . . . . . . . . . . . . . . . . . . Times Spotted 265 | . 15 2 . 2 26 29 4 10 . 7 53 6 22 11 23 4 26 25 Peak Tracking Total 11 | . 9 2 . 1 8 4 3 5 . 3 4 6 3 6 9 4 11 5 Tactical Retreats 21 | . 3 . . . 8 3 . . . . 1 . 1 . 2 . 3 . Traps | -11 -10 -10 -10 -9 -8 -7 -7 -7 -7 -6 -6 -6 -6 -6 -6 -6 -5 -5 ------- Run | Scr Mat Min Exi Min Mat Fac Low Low Zio Pro Fac Was Fac Low Low Dat Pro Fac Traps Triggered 2 | . . . . . . 1 . . . . 1 . . . . . . . Indirectly . | . . . . . . . . . . . . . . . . . . . Trap Hack Attempts . | . . . . . . . . . . . . . . . . . . . Triggered . | . . . . . . . . . . . . . . . . . . . Disarmed 13 | . . . . . . 6 . . . . . . 7 . . . . . Reprogrammed 81 | . . . . . 13 11 . . . . 46 . 6 . . . . 5 Reused 21 | . . 1 . . 4 1 . . . . 13 . . . . . . 2 Traps Extracted . | . . . . . . . . . . . . . . . . . . . Installed 14 | . . 4 . . . . . 10 . . . . . . . . . . Triggered 23 | . . 1 . . 4 1 1 . . . 13 . . . 1 . . 2 Machines | -11 -10 -10 -10 -9 -8 -7 -7 -7 -7 -6 -6 -6 -6 -6 -6 -6 -5 -5 ---------- Run | Scr Mat Min Exi Min Mat Fac Low Low Zio Pro Fac Was Fac Low Low Dat Pro Fac Machines Disabled 4 | . . . . . . . . . 2 . . . . . 1 . 1 . Max in Single Turn 1 | . . . . . . . . . 1 . . . . . 1 . 1 . Garrison Access 6 | . . . . . . 2 . . . . 2 . 2 . . . . . Machines Sabotaged . | . . . . . . . . . . . . . . . . . . . Garrisons Compromised . | . . . . . . . . . . . . . . . . . . . Overloaded Fab Kills . | . . . . . . . . . . . . . . . . . . . Fab Network Shutdowns 3 | . . . . . . 1 . . . . 1 . 1 . . . . . Hacking | -11 -10 -10 -10 -9 -8 -7 -7 -7 -7 -6 -6 -6 -6 -6 -6 -6 -5 -5 --------- Run | Scr Mat Min Exi Min Mat Fac Low Low Zio Pro Fac Was Fac Low Low Dat Pro Fac Machines Accessed 129 | . 8 . 1 . 12 31 . 3 1 . 37 . 22 . . 4 . 10 Terminals 64 | . 6 . . . 6 16 . . . . 18 . 11 . . . . 7 Fabricators 12 | . . . . . . 4 . . . . 5 . 3 . . . . . Repair Stations 8 | . 1 . . . 1 1 . . . . 3 . 1 . . . . 1 Recycling Units 17 | . 1 . . . 2 5 . . . . 6 . 3 . . . . . Scanalyzers 8 | . . . . . 2 2 . . . . 2 . 1 . . . . 1 Garrison Access 11 | . . . . . 1 3 . . . . 3 . 3 . . . . 1 Total Hacks 653 | . 33 . 1 . 39 175 . 3 4 . 186 . 118 . . 26 . 68 Successful 575 | . 24 . 1 . 36 143 . 3 4 . 165 . 107 . . 26 . 66 Failed 78 | . 9 . . . 3 32 . . . . 21 . 11 . . . . 2 Catastrophic 1 | . . . . . . 1 . . . . . . . . . . . . Database Lockouts . | . . . . . . . . . . . . . . . . . . . Manual 341 | . 24 . 1 . 30 105 . . . . 87 . 57 . . . . 37 Terminals 449 | . 30 . . . 27 126 . . . . 124 . 82 . . . . 60 Fabricators 64 | . . . . . . 18 . . . . 28 . 18 . . . . . Repair Stations 10 | . 1 . . . 1 3 . . . . 3 . 1 . . . . 1 Recycling Units 42 | . 2 . . . 5 15 . . . . 15 . 5 . . . . . Scanalyzers 25 | . . . . . 2 7 . . . . 9 . 4 . . . . 3 Garrison Access 29 | . . . . . 4 6 . . . . 7 . 8 . . . . 4 Terminal Hacks 296 | . 12 . 1 . 13 74 . 3 4 . 74 . 51 . . 26 . 38 Record 15 | . . . . . . . . . . . 3 . . . . 11 . 1 Part Schematic 80 | . . . . . . 21 . . 4 . 24 . 10 . . 5 . 16 Robot Schematic 10 | . . . . . . . . . . . 3 . . . . 7 . . Robot Analysis 22 | . 2 . . . . 12 . . . . . . 8 . . . . . Prototype ID Bank 41 | . 3 . . . 1 9 . . . . 14 . 10 . . 3 . 1 Open Door 3 | . . . . . . . . 3 . . . . . . . . . . Level Access Points 4 | . . . . . 1 1 . . . . . . 1 . . . . 1 Branch Access Points 5 | . 1 . . . 1 1 . . . . . . 1 . . . . 1 Emergency Access Points 7 | . . . . . 1 4 . . . . 1 . 1 . . . . . Machine Index 3 | . . . . . 1 . . . . . . . 1 . . . . 1 Terminal Index 3 | . 1 . . . . 1 . . . . . . 1 . . . . . Fabricator Index 1 | . . . . . . 1 . . . . . . . . . . . . Repair Station Index 2 | . . . . . . 1 . . . . . . 1 . . . . . Recycling Unit Index 1 | . . . . . . 1 . . . . . . . . . . . . Garrison Index 1 | . . . . . . 1 . . . . . . . . . . . . Alert Level 4 | . . . . . . . . . . . 2 . . . . . . 2 Unreport Threat 14 | . . . . . 1 3 . . . . 5 . 3 . . . . 2 Locate Traps 22 | . 2 . . . 1 3 . . . . 6 . 6 . . . . 4 Disarm Traps 3 | . . . . . . 1 . . . . . . 2 . . . . . Reprogram Traps 21 | . . . . . 4 4 . . . . 11 . 1 . . . . 1 Dispatch Records 2 | . . . . . . . . . . . 1 . . . . . . 1 Hauler Manifests 2 | . . . . . . 1 . . . . 1 . . . . . . . Registered Components 3 | . . . . . 1 1 . . . . . . . . . . . 1 Registered Prototypes 1 | . . . . . . 1 . . . . . . . . . . . . Zone Layout 25 | . 3 . . . 1 7 . . . . 3 . 5 . . . . 6 EX-Prototype ID Bank 1 | . . . 1 . . . . . . . . . . . . . . . Fabricator Hacks 40 | . . . . . . 12 . . . . 17 . 11 . . . . . Network Status 7 | . . . . . . 2 . . . . 4 . 1 . . . . . Load Schematic 13 | . . . . . . 4 . . . . 4 . 5 . . . . . Build 20 | . . . . . . 6 . . . . 9 . 5 . . . . . Repair Station Hacks 1 | . . . . . . 1 . . . . . . . . . . . . Refit 1 | . . . . . . 1 . . . . . . . . . . . . Recycling Unit Hacks 25 | . 1 . . . 2 6 . . . . 12 . 4 . . . . . Process 4 | . . . . . . . . . . . 4 . . . . . . . Report Inventory 18 | . 1 . . . 2 4 . . . . 8 . 3 . . . . . Retrieve Components 3 | . . . . . . 2 . . . . . . 1 . . . . . Scanalyzer 22 | . . . . . . 7 . . . . 8 . 4 . . . . 3 Insert Component 11 | . . . . . . 3 . . . . 4 . 2 . . . . 2 Analyze 11 | . . . . . . 4 . . . . 4 . 2 . . . . 1 Garrison Access Hacks 6 | . . . . . . 2 . . . . 2 . 2 . . . . . Seal Access 6 | . . . . . . 2 . . . . 2 . 2 . . . . . Unauthorized Hacks 185 | . 11 . . . 21 41 . . . . 52 . 35 . . . . 25 Terminals 115 | . 9 . . . 11 23 . . . . 31 . 21 . . . . 20 Track 28 | . 2 . . . 2 7 . . . . 6 . 6 . . . . 5 Assimilate 24 | . . . . . 2 2 . . . . 10 . 6 . . . . 4 Botnet 49 | . 6 . . . 6 12 . . . . 11 . 8 . . . . 6 Disrupt 4 | . . . . . . . . . . . 1 . . . . . . 3 Operators 10 | . 1 . . . 1 2 . . . . 3 . 1 . . . . 2 Fabricators 22 | . . . . . . 6 . . . . 10 . 6 . . . . . Report 4 | . . . . . . 1 . . . . 2 . 1 . . . . . Prioritize 7 | . . . . . . 2 . . . . 3 . 2 . . . . . Siphon 7 | . . . . . . 2 . . . . 3 . 2 . . . . . Haulers 4 | . . . . . . 1 . . . . 2 . 1 . . . . . Repair Stations 8 | . 1 . . . 1 1 . . . . 3 . 1 . . . . 1 Mechanics 8 | . 1 . . . 1 1 . . . . 3 . 1 . . . . 1 Recycling Units 15 | . 1 . . . 3 7 . . . . 3 . 1 . . . . . Monitor 4 | . . . . . 1 2 . . . . 1 . . . . . . . Recyclers 4 | . . . . . 1 2 . . . . 1 . . . . . . . Tunnel 7 | . 1 . . . 1 3 . . . . 1 . 1 . . . . . Scanalyzers 3 | . . . . . 2 . . . . . 1 . . . . . . . Extract 3 | . . . . . 2 . . . . . 1 . . . . . . . Garrison Access 22 | . . . . . 4 4 . . . . 4 . 6 . . . . 4 Broadcast 5 | . . . . . 1 1 . . . . 1 . 1 . . . . 1 Reprogram 7 | . . . . . 1 1 . . . . 1 . 3 . . . . 1 Intercept 5 | . . . . . 1 1 . . . . 1 . 1 . . . . 1 Watchers 5 | . . . . . 1 1 . . . . 1 . 1 . . . . 1 Data Cores Recovered . | . . . . . . . . . . . . . . . . . . . Used . | . . . . . . . . . . . . . . . . . . . Hacking Detections 75 | . 8 . . . 5 18 . . . . 26 . 13 . . . . 5 Full Trace Events 4 | . . . . . . 2 . . . . 2 . . . . . . . Feedback Events 1 | . . . . . . . . . . . 1 . . . . . . . Corruption 1 | . . . . . . . . . . . 1 . . . . . . . Feedback Blocked . | . . . . . . . . . . . . . . . . . . . Robot Schematics Acquired 10 | . . . . . . . . . . . 3 . . . . 7 . . Robots Built . | . . . . . . . . . . . . . . . . . . . Matter . | . . . . . . . . . . . . . . . . . . . Time . | . . . . . . . . . . . . . . . . . . . Total Robot Build Rating . | . . . . . . . . . . . . . . . . . . . Part Schematics Acquired 116 | . . . . . 10 23 . . 4 . 45 . 12 . . 5 . 17 Parts Built 19 | . . . . . . 5 . . . . 7 . 7 . . . . . Matter 2924 | . . . . . . 788 . . . . 1321 . 815 . . . . . Time 502 | . . . . . . 202 . . . . 189 . 111 . . . . . Total Part Build Rating 99 | . . . . . . 22 . . . . 38 . 39 . . . . . Parts Repaired . | . . . . . . . . . . . . . . . . . . . Time . | . . . . . . . . . . . . . . . . . . . Parts Recycled . | . . . . . . . . . . . . . . . . . . . Recycled Matter 1438 | . . . . . . . . . . . 1438 . . . . . . . Retrieved Matter . | . . . . . . . . . . . . . . . . . . . Retrieved Components 10 | . . . . . . 7 . . . . . . 3 . . . . . Parts Scanalyzed 10 | . . . . . . 3 . . . . 4 . 2 . . . . 1 Part Schematics Acquired 10 | . . . . . . 3 . . . . 4 . 2 . . . . 1 Parts Damaged 2 | . . . . . . . . . . . 1 . . . . . . 1 Bothacking | -11 -10 -10 -10 -9 -8 -7 -7 -7 -7 -6 -6 -6 -6 -6 -6 -6 -5 -5 ------------ Run | Scr Mat Min Exi Min Mat Fac Low Low Zio Pro Fac Was Fac Low Low Dat Pro Fac Used RIF Installer . | . . . . . . . . . . . . . . . . . . . Robots Hacked 4 | . . . . . . 1 . . . . 1 . 1 . . . . 1 Non-combat 4 | . . . . . . 1 . . . . 1 . 1 . . . . 1 Combat . | . . . . . . . . . . . . . . . . . . . Robot Hacks Applied 4 | . . . . . . 1 . . . . 1 . 1 . . . . 1 no_distress 2 | . . . . . . 1 . . . . . . 1 . . . . . find_chute 2 | . . . . . . . . . . . 1 . . . . . . 1 Relay Couplers Released . | . . . . . . . . . . . . . . . . . . . Robots Rewired 6 | . . . . . . . . . . . . . . 2 2 . 2 . Allies Hacked 1 | . . . . . . . . . . . 1 . . . . . . . Hacks Repelled . | . . . . . . . . . . . . . . . . . . . Allies | -11 -10 -10 -10 -9 -8 -7 -7 -7 -7 -6 -6 -6 -6 -6 -6 -6 -5 -5 -------- Run | Scr Mat Min Exi Min Mat Fac Low Low Zio Pro Fac Was Fac Low Low Dat Pro Fac Total Allies 32 | . . 3 . 2 1 1 . . . . 7 . 9 2 2 . 2 3 Largest Group 10 | . . 3 . 2 2 1 1 1 1 1 3 1 10 9 10 . 2 3 Highest-Rated Group 277 | . . 40 . 47 47 26 26 26 26 26 62 26 271 253 277 . 62 46 Highest-Rated Ally 38 | . . 16 . 31 31 26 26 26 26 26 26 26 38 32 32 . 31 26 Total Orders 15 | . . . . . 3 2 . . 3 . 4 . . . . . . 3 STAY 6 | . . . . . 2 1 . . . . 1 . . . . . . 2 FOLLOW 4 | . . . . . 1 1 . . . . 1 . . . . . . 1 EXPLORE 2 | . . . . . . . . . 2 . . . . . . . . . RETURN 3 | . . . . . . . . . 1 . 2 . . . . . . . Ally Attacks 84 | . . 6 . . . . . . . . . . 12 22 42 . 2 . Total Damage 1299 | . . 87 . . . . . . . . . . 191 410 591 . 20 . Kills 10 | . . . . . . . . . . . . . 1 2 6 . 1 . Allies Corrupted . | . . . . . . . . . . . . . . . . . . . Allies Melted . | . . . . . . . . . . . . . . . . . . . Intel | -11 -10 -10 -10 -9 -8 -7 -7 -7 -7 -6 -6 -6 -6 -6 -6 -6 -5 -5 ------- Run | Scr Mat Min Exi Min Mat Fac Low Low Zio Pro Fac Was Fac Low Low Dat Pro Fac Robot Analysis Total 137 | . 2 . . . . 12 . . . . . . 8 . . 115 . . Derelict Logs Recovered 14 | . . . . 1 . . 1 1 3 2 . . . 2 2 . 2 . Drone Launches 3 | . . . . . . . . . 1 . 2 . . . . . . . Drone Recoveries 3 | . . . . . . . . . 1 . 2 . . . . . . . Decoded 0b10 Intel 107 | . . . . . . . . . . . 49 2 34 . . . . 22 Traps 3 | . . . . . . . . . . . . . 3 . . . . . Emergency Access 1 | . . . . . . . . . . . . . . . . . . 1 Items 96 | . . . . . . . . . . . 44 2 30 . . . . 20 Patrols 6 | . . . . . . . . . . . 5 . . . . . . 1 Guards 1 | . . . . . . . . . . . . . 1 . . . . . Exploration | -11 -10 -10 -10 -9 -8 -7 -7 -7 -7 -6 -6 -6 -6 -6 -6 -6 -5 -5 ------------- Run | Scr Mat Min Exi Min Mat Fac Low Low Zio Pro Fac Was Fac Low Low Dat Pro Fac Turns Passed 13374 | 10 146 208 206 237 625 1573 1197 1131 954 625 2412 46 840 874 522 444 822 502 Spaces Moved 22837 | 19 292 392 511 557 1097 3189 1517 718 1419 1331 4627 150 2047 1177 1071 308 1303 1112 Core 244 | 19 218 7 . . . . . . . . . . . . . . . . Treads . | . . . . . . . . . . . . . . . . . . . Legs . | . . . . . . . . . . . . . . . . . . . Wheels . | . . . . . . . . . . . . . . . . . . . Hover . | . . . . . . . . . . . . . . . . . . . Flight 22593 | . 74 385 511 557 1097 3189 1517 718 1419 1331 4627 150 2047 1177 1071 308 1303 1112 Fastest Speed 14 | 50 40 40 40 40 34 27 27 27 27 27 14 26 14 26 26 26 26 14 Average Speed 28 | 50 47 41 40 40 34 28 27 27 27 27 26 26 25 26 26 26 26 25 Slowest Speed 100 | 50 50 100 40 40 40 34 27 27 27 27 27 26 29 26 26 26 26 29 Overloaded Moves 159 | . . . . . . . . . . . 31 . 41 . . . . 87 Propulsion Burnouts . | . . . . . . . . . . . . . . . . . . . Robots Hopped 75 | . 2 1 . 5 12 21 . 3 . . 17 . 7 . . . . 7 Cave-ins Triggered . | . . . . . . . . . . . . . . . . . . . Time Travels 1 | . . . . . . . . . . . . . . . . 1 . . Exploration Rate (%) 74 | 3 61 63 90 97 72 54 96 88 88 95 82 86 50 98 97 78 98 23 Regions Visited 18 Branch Regions 11 Pre-discovered Areas 28 | . 1 . . . 1 3 . . 3 . 1 . 1 1 . 16 1 . Known Exits Taken 16 | 1 1 1 1 1 1 1 1 1 1 1 . . 1 1 1 1 1 . Unknown Exits Taken . | . . . . . . . . . . . . . . . . . . . Scrap Searched 22 | . . . . 1 . . 3 2 5 2 . . . 3 3 . 3 . Spaces Dug 25 | . . . . . . 6 2 . . . 15 . . . . . 1 1 Terrain Destroyed 179 | . . . . 38 . 6 3 3 . . 22 . . 11 53 . 42 1 Melee 23 | . . . . . . 6 . . . . 15 . . . . . 1 1 Projectile 6 | . . . . . . . 3 3 . . . . . . . . . . AOE 150 | . . . . 38 . . . . . . 7 . . 11 53 . 41 . Terrain Rammed . | . . . . . . . . . . . . . . . . . . . Walls Destroyed . | . . . . . . . . . . . . . . . . . . . Machines Disabled . | . . . . . . . . . . . . . . . . . . . Actions | -11 -10 -10 -10 -9 -8 -7 -7 -7 -7 -6 -6 -6 -6 -6 -6 -6 -5 -5 --------- Run | Scr Mat Min Exi Min Mat Fac Low Low Zio Pro Fac Was Fac Low Low Dat Pro Fac Total 29015 | 18 295 436 511 561 1307 3734 2292 1616 1985 1566 5684 155 2282 1689 1262 650 1738 1234 Wait 4936 | . 4 36 . 2 172 406 765 835 548 175 552 . 138 456 120 291 373 63 Move 22672 | 18 288 389 510 546 1073 3146 1516 711 1418 1330 4593 149 2032 1176 1070 307 1302 1098 Hop 73 | . 1 1 . 5 11 21 . 3 . . 17 . 7 . . . . 7 Pick Up 229 | . . . 1 1 9 18 . 2 4 4 159 2 13 . 1 9 3 3 Fast Attach 25 | . 2 1 . . 1 3 . . 3 1 9 . 2 . . 2 . 1 Attach 46 | . . . . . 7 8 . . 1 4 8 2 3 . 3 7 . 3 Detach 7 | . . . . . . 2 . . . 1 1 . . . . 2 . 1 Swap 58 | . . . . . 4 12 . 2 4 3 15 2 5 1 1 2 2 5 Drop 227 | . . . . . 5 13 . 1 4 4 164 . 17 . 3 8 2 6 Fire 206 | . . . . 4 17 52 11 31 3 1 24 . 2 21 28 . 11 1 Melee 284 | . . . . . 7 29 . 2 . 22 86 . 37 17 11 12 18 43 Ram . | . . . . . . . . . . . . . . . . . . . Kick . | . . . . . . . . . . . . . . . . . . . Crush . | . . . . . . . . . . . . . . . . . . . Escape Stasis . | . . . . . . . . . . . . . . . . . . . Rewire . | . . . . . . . . . . . . . . . . . . . Trap 14 | . . 4 . . . . . 10 . . . . . . . . . . Miscellaneous 238 | . . 5 . 3 1 24 . 19 . 21 56 . 26 18 25 10 27 3 Route ------- -11/Scrapyard -10/Materials (discovered 3 exits: *Mat x2 / *Min) -10/Mines (discovered 2 exits: *Mat / *Exi) -10/Exiles -9/Mines (discovered 2 exits: *Mat x2) -8/Materials (discovered 3 exits: *Fac x3) -7/Factory (discovered 6 exits: *Fac x4 / *Low x2) -7/Lower Caves -7/Lower Caves (discovered 2 exits: *Fac / *Zio) -7/Zion -6/Proximity Caves -6/Factory (discovered 6 exits: *Fac x4 / *Low x2) -6/Waste -6/Factory (discovered 6 exits: *Fac x4 / *Low x2) -6/Lower Caves -6/Lower Caves (discovered 2 exits: *Fac / *Dat) -6/Data Miner -5/Proximity Caves -5/Factory (discovered 8 exits: *Fac x4 / *Upp x2 / *Ext x2) History --------- Turn | Location | Event 3 | -11/Scrapyard | Identified exit to Materials 3 | -11/Scrapyard | Discovered exit to Materials (range 16) 11 | -11/Scrapyard | Entered Materials 54 | -10/Materials | Identified exit to Materials 54 | -10/Materials | Discovered exit to Materials (range 17) 54 | -10/Materials | Identified exit to Mines 149 | -10/Materials | Discovered exit to Materials (range 10) 157 | -10/Materials | Entered Mines 164 | -10/Mines | Received a Rocket Launcher from a helpful Derelict 170 | -10/Mines | Met a Derelict bent on vengeance 191 | -10/Mines | Found a hidden stash of uninstalled traps 218 | -10/Mines | Assembled infested the area 220 | -10/Mines | Discovered exit to Materials (range 14) 247 | -10/Mines | Met 8R-AWN 302 | -10/Mines | Assisted by bots powering up and referring to "LRC-V3" 316 | -10/Mines | Build established: Hacker-Mutant 316 | -10/Mines | Identified exit to Exiles 316 | -10/Mines | Discovered exit to Exiles (range 5) 365 | -10/Mines | Entered Exiles 376 | -10/Exiles | Welcomed by 8R-AWN 383 | -10/Exiles | Met EX-HEX 396 | -10/Exiles | Met EX-BIN 401 | -10/Exiles | Reached level 2 401 | -10/Exiles | Aligned with FarCom system 402 | -10/Exiles | Given EX-Vault access code 411 | -10/Exiles | Opened EX-Vault 415 | -10/Exiles | Found Chronowheel 424 | -10/Exiles | Warned to stay clear of 0b10 Research branches 436 | -10/Exiles | Met EX-DEC 450 | -10/Exiles | Visited The Gauntlet 567 | -10/Exiles | Identified exit to Mines 567 | -10/Exiles | Discovered exit to Mines (range 10) 569 | -10/Exiles | Upgraded with Power slot (x1) 569 | -10/Exiles | Upgraded with Propulsion slot (x2) 569 | -10/Exiles | Upgraded with Utility slot (x3) 569 | -10/Exiles | Upgraded with Weapon slot (x1) 571 | -10/Exiles | Left Exiles lab with Chronowheel 571 | -10/Exiles | Entered Mines 596 | -9/Mines | Identified exit to Materials 596 | -9/Mines | Discovered exit to Materials (range 14) 770 | -9/Mines | Reached level 3 802 | -9/Mines | Discovered exit to Materials (range 5) 808 | -9/Mines | Entered Materials 808 | -8/Materials | Accompanied by 2 allies 810 | -8/Materials | Reached level 4 810 | -8/Materials | Reached level 5 810 | -8/Materials | Reached level 6 813 | -8/Materials | Led the pair of lost Derelicts to an unsafe place 880 | -8/Materials | Build established: Hacker-Scout 1101 | -8/Materials | Upgraded with Utility slot (x1) 1144 | -8/Materials | Identified exit to Factory 1144 | -8/Materials | Discovered exit to Factory (range 7) 1300 | -8/Materials | Reached level 7 1412 | -8/Materials | Discovered exit to Factory (range 16) 1433 | -8/Materials | Entered Factory 1434 | -7/Factory | Identified exit to Lower Caves 1435 | -7/Factory | Reached level 8 1435 | -7/Factory | Reached level 9 1435 | -7/Factory | Reached level 10 1441 | -7/Factory | Upgraded with Propulsion slot (x1) 1441 | -7/Factory | Upgraded with Utility slot (x1) 1695 | -7/Factory | Core integrity fell below 50% 2059 | -7/Factory | Identified exit to Factory 2060 | -7/Factory | Build established: Wizard-Scout 2387 | -7/Factory | Fabricated Cld. VTOL Module (x1) 2420 | -7/Factory | Fabricated Cld. VTOL Module (x1) 2459 | -7/Factory | Reached level 11 2529 | -7/Factory | Fabricated Lrn. Terrain Scanner (x1) 2579 | -7/Factory | Fabricated Imp. System Shield (x1) 2629 | -7/Factory | Fabricated Imp. System Shield (x1) 2839 | -7/Factory | Reached level 12 2877 | -7/Factory | Destroyed 8 combat bots 2937 | -7/Factory | Local fabrication network quarantined 3006 | -7/Factory | Entered Lower Caves 3006 | -7/Lower Caves | Accompanied by 1 ally 3023 | -7/Lower Caves | Identified exit to Lower Caves 3059 | -7/Lower Caves | Reached level 13 3096 | -7/Lower Caves | Encountered a Warlord checkpoint 3225 | -7/Lower Caves | Spotted B-75 Beast 3304 | -7/Lower Caves | Build established: Wizard-Sprinter 4203 | -7/Lower Caves | Entered another Lower Caves area 4203 | -7/Lower Caves | Accompanied by 1 ally 4322 | -7/Lower Caves | Discovered exit to Factory (range 6) 4437 | -7/Lower Caves | Found Prototype Device 4530 | -7/Lower Caves | Reached level 14 4905 | -7/Lower Caves | Identified exit to Zion 4905 | -7/Lower Caves | Discovered exit to Zion (range 21) 5334 | -7/Lower Caves | Entered Zion 5334 | -7/Zion | Accompanied by 1 ally 5523 | -7/Zion | Identified exit to Proximity Caves 5523 | -7/Zion | Discovered exit to Proximity Caves (range 13) 5627 | -7/Zion | Learned Factory trap positions 5627 | -7/Zion | Learned location of Armory (-4) 5687 | -7/Zion | Given the Hacking Drone Bay 5689 | -7/Zion | Upgraded with Weapon slot (x1) 5690 | -7/Zion | Found Prototype Device 5691 | -7/Zion | Identified Hacking Drone Bay 5720 | -7/Zion | Learned Factory emergency access door positions 5724 | -7/Zion | Learned Factory emergency access door positions 5754 | -7/Zion | Given A8's code to call for help 5764 | -7/Zion | Found Relay Coupler [Programmer] 5783 | -7/Zion | Learned location of Warlord (-4) 6170 | -7/Zion | Rebuked by Imprinter 6288 | -7/Zion | Entered Proximity Caves 6288 | -6/Proximity Caves | Accompanied by 1 ally 6290 | -6/Proximity Caves | Reached level 15 6291 | -6/Proximity Caves | Upgraded with Utility slot (x1) 6400 | -6/Proximity Caves | Spotted B-75 Beast 6547 | -6/Proximity Caves | Learned Factory terminal intel 6591 | -6/Proximity Caves | Learned Factory machine intel 6746 | -6/Proximity Caves | Destroyed B-75 Beast 6763 | -6/Proximity Caves | Discovered exit to Factory (range 15) 6913 | -6/Proximity Caves | Entered Factory 6914 | -6/Factory | Loaded intel: 101 trap records 6915 | -6/Factory | Reached level 16 6916 | -6/Factory | Loaded intel: 279 machine locations 6917 | -6/Factory | Loaded intel: 20 terminal locations 7012 | -6/Factory | Spotted B-75 Beast 7101 | -6/Factory | Core integrity fell below 50% 7110 | -6/Factory | Reached level 17 7110 | -6/Factory | Destroyed B-75 Beast 7115 | -6/Factory | Upgraded with Utility slot (x1) 7126 | -6/Factory | Identified exit to Factory 7129 | -6/Factory | Identified exit to Lower Caves 7209 | -6/Factory | Build established: Wizard-Scout 7792 | -6/Factory | Found Prototype Processor 7793 | -6/Factory | Identified Exp. Signal Interpreter 7885 | -6/Factory | Fabricated Force Lance (x1) 7910 | -6/Factory | Fabricated Cld. VTOL Module (x1) 8090 | -6/Factory | Reached level 18 8375 | -6/Factory | Fabricated Cld. Cesium-ion Thruster? 8445 | -6/Factory | Fabricated Adv. System Shield? 8476 | -6/Factory | Fabricated Cld. Cesium-ion Thruster (x1) 8503 | -6/Factory | Found Powered Armor 8504 | -6/Factory | Found Powered Armor 8523 | -6/Factory | Found Launcher Loader 8525 | -6/Factory | Found Launcher Loader 8526 | -6/Factory | Found Launcher Loader 8528 | -6/Factory | Found Launcher Loader 8530 | -6/Factory | Found Launcher Loader 8532 | -6/Factory | Found Launcher Loader 8533 | -6/Factory | Found Launcher Loader 8953 | -6/Factory | Fabricated Adv. System Shield (x1) 9003 | -6/Factory | Fabricated Cld. Cesium-ion Thruster? 9279 | -6/Factory | Reached level 19 9318 | -6/Factory | Local fabrication network quarantined 9325 | -6/Factory | Manually triggered Chute Trap 9325 | -6/Factory | Sucked down chute 9325 | -6/Factory | Entered Waste 9327 | -6/Waste | Upgraded with Utility slot (x1) 9327 | -6/Waste | Upgraded with Weapon slot (x1) 9335 | -6/Waste | Spotted C-40 Crusher 9340 | -6/Waste | Spotted C-40 Crusher 9346 | -6/Waste | Spotted C-40 Crusher 9347 | -6/Waste | Spotted C-40 Crusher 9358 | -6/Waste | Spotted C-40 Crusher 9359 | -6/Waste | Spotted C-40 Crusher 9364 | -6/Waste | Identified exit to Factory 9364 | -6/Waste | Discovered exit to Factory (range 14) 9371 | -6/Waste | Entered Factory 9390 | -6/Factory | 3 allies followed down the chute 9455 | -6/Factory | Spotted B-75 Beast 9484 | -6/Factory | Core integrity fell below 20% 9543 | -6/Factory | Garrison activated, responded to threat 9790 | -6/Factory | Fabricated Adv. Melee Analysis Suite (x1) 9806 | -6/Factory | Fabricated Adv. Melee Analysis Suite (x1) 9824 | -6/Factory | Fabricated Mic. Fission Core (x2) 10066 | -6/Factory | Fabricated Imp. Dynamic Insulation System (x2) 10073 | -6/Factory | Local fabrication network quarantined 10106 | -6/Factory | Fabricated Cld. Cesium-ion Thruster (x1) 10211 | -6/Factory | Entered Lower Caves 10211 | -6/Lower Caves | Accompanied by 9 allies 10272 | -6/Lower Caves | Reached level 20 10314 | -6/Lower Caves | Learned location of 1 exit from Factory 10324 | -6/Lower Caves | Spotted B-75 Beast 10514 | -6/Lower Caves | Build established: Wizard-Sprinter 10810 | -6/Lower Caves | Destroyed B-75 Beast 10862 | -6/Lower Caves | Identified exit to Lower Caves 10862 | -6/Lower Caves | Discovered exit to Lower Caves (range 12) 11085 | -6/Lower Caves | Entered another Lower Caves area 11085 | -6/Lower Caves | Accompanied by 8 allies 11085 | -6/Lower Caves | Discovered exit to Factory (range 16) 11103 | -6/Lower Caves | Learned location of 1 exit from Factory 11103 | -6/Lower Caves | Learned location of 1 exit from Proximity Caves 11112 | -6/Lower Caves | Encountered a Warlord checkpoint 11174 | -6/Lower Caves | Attracted the attention of an 0b10 outpost 11205 | -6/Lower Caves | Destroyed 7 combat bots 11232 | -6/Lower Caves | Identified exit to Data Miner 11232 | -6/Lower Caves | Discovered exit to Data Miner (range 12) 11537 | -6/Lower Caves | Build established: Machinist-Sprinter 11607 | -6/Lower Caves | Entered Data Miner 11607 | -6/Data Miner | Identified exit to Proximity Caves 11607 | -6/Data Miner | Discovered exit to Proximity Caves (range 6) 11612 | -6/Data Miner | Met Data Miner 11619 | -6/Data Miner | Learned location of Section 7 (-2) 11619 | -6/Data Miner | Acquired the access code to Warlord's prototype stash 11622 | -6/Data Miner | Received God Mode back door access code from Data Miner 11949 | -6/Data Miner | Activated Chronowheel 11949 | -6/Data Miner | Spacetime reconverged on an earlier point 11954 | -6/Data Miner | Destroyed Data Miner 11957 | -6/Data Miner | Reached level 21 11957 | -6/Data Miner | Interfaced with the Data Conduit 11957 | -6/Data Miner | Found Prototype Hackware 11959 | -6/Data Miner | Found Prototype Hackware 11960 | -6/Data Miner | Found Prototype Hackware 11963 | -6/Data Miner | Found Prototype Hackware 11996 | -6/Data Miner | Found Exp. Thermal Shield 12027 | -6/Data Miner | Upgraded with Utility slot (x1) 12027 | -6/Data Miner | Identified System Mapper 12030 | -6/Data Miner | Identified Deep Network Scanner 12031 | -6/Data Miner | Identified Ghost Barrier 12032 | -6/Data Miner | Identified Quantum Router 12038 | -6/Data Miner | Found Exp. Thermal Shield 12051 | -6/Data Miner | Entered Proximity Caves 12338 | -5/Proximity Caves | Build established: Wizard-Sprinter 12361 | -5/Proximity Caves | Attracted the attention of an 0b10 base 12519 | -5/Proximity Caves | Found Alien Artifact 12819 | -5/Proximity Caves | Reached level 22 12873 | -5/Proximity Caves | Entered Factory 12874 | -5/Factory | Identified exit to Extension 12875 | -5/Factory | Identified exit to Factory 12876 | -5/Factory | Loaded intel: 261 machine locations 12954 | -5/Factory | Identified exit to Upper Caves 12954 | -5/Factory | Discovered exit to Upper Caves (range 19) 13160 | -5/Factory | Build established: Wizard-Scout 13211 | -5/Factory | Identified Core Expander 13212 | -5/Factory | Installed Core Expander, added new Power slot 13218 | -5/Factory | Upgraded with Propulsion slot (x1) 13286 | -5/Factory | Intercept squad dispatched 13293 | -5/Factory | Spotted Tracker 13302 | -5/Factory | Core integrity fell below 50% 13302 | -5/Factory | Destroyed Tracker 13349 | -5/Factory | Spotted Combat Programmer 13351 | -5/Factory | Core integrity fell below 20% 13363 | -5/Factory | Destroyed Combat Programmer 13375 | -5/Factory | Destroyed by H-66 Slayer with Gauss Rifle Last Messages --------------- 13350_ Manufacturing Mainframe disabled. 13352_ EMDS Slug penetrates Wall. 13356_ Penetrated by EMDS Slug. 13358_ EMDS Slug penetrates Wall. 13360_ Penetrated by EMDS Slug. 13360_ Slug penetrates Wall. 13362_ EMDS Slug penetrates Wall. 13363_ >> DECODED: Hpw. Shock Rifle location. 13363_ Combat Programmer fries systems beyond repair. 13363_ Combat Programmer destroyed. 13364_ Slug penetrates Wall. 13367_ Penetrated by Slug. 13368_ H-66 Slayer destroyed. 13368_ Slug penetrates Wall. 13369_ >> DECODED: Hacking Suite location. 13371_ H-66 Slayer suffers critical hit. 13371_ Destroyed Gauss Rifle. 13372_ Penetrated by Slug. 13374_ Acquired Protomatter-62. 13375_ Penetrated by Slug. Map ----- +----------------------------------------------------+ | ?????????????????????????????????????????????????? | | ?????????????????????????????????????????????????? | | ?????????????????????????????????????????????????? | | ?????????????????????????????????????????????????? | | ?????????????????????????????????????????????????? | | ??"""?"""????????????????????????????????????????? | | ??"""?"""????????????????????????????????????????? | | ??"""?"""????????????????????????????????????????? | | +????????????????????????????????????????????????? | | ??"""?"""????????????????????????????????????????? | | ??"""?"""????????????????????????????????????????? | | ??"""?"""????????????????????????????????????????? | | ?????????????????????????????????????????????????? | | ####???##############????????#############???????? | | = ???# #????????# #???????? | | ???# ########?# #???????? | | """# """" """" ## #?# #???????? | | """#* """" """" ## #?# #???????? | | """# """" "" + #?# #???????? | | # """" """ ##! % #?# #???????? | | """# ## #?# #???????? | | """# """" """" ### ##?# #???????? | | """# """" """" #?# #??# ######### | | # """" """" #?# #??# # | | # """" """" #?# =[#??# # u | | ? ^ !# ### !@#### # | | ###/#############+### =h ## # | | #######+###### | | # | | % g g # | | ""k + | | ### T" # | | #################+### #?# "" ######### | | #??#???????## ########### #??????? | | #??????#??#?# """" ## # " " ######## | | #???????????# """" ## # " " | | #??#???#??#?#! """" ## # " " ##### | | #?##??????#?# """" ## # " " #???? | | ###?#?#???#?# """" ## # " " =#### #???? | | ###?#???????# """" ## # " " #??# #???? | | ###??###?#??# ## # " " R####+##### | | """""#?#?#?## ] ## # " " # | | ###??####??# ########+## " "! # "" | | """""""#??#?# ] ###### ^^ # """ """ | | ###??#??????#""" / ! " " + """ F" | | ?????#?#?####""" ###### ^^ " " # """ """ | | ##??#??##?#?#"S!! ########+## " " # "" | | ??##??#######""" ## ]] ## " " ????!?????? | | ??#???##??#?# "" ##" ]] ## " "???????????? | | ###?##?####?# ##" ] ## " "???????#???? | +----------------------------------------------------+ Best States ------------- Heat Dissipation 73 Energy Generation 56 Energy Capacity 240 Matter Stores 300 Matter Capacity 300 Sight Range 16 Terrain Scan Range 24 Terrain Scan Density 410 EM Shielding 3 Armor Coverage 225 Resistance: KI 35 Resistance: TH 65 Resistance: EX 35 Resistance: EM 60 Resistance: I 35 Resistance: S 35 Resistance: P 35 Evasion (%) 74 Melee Accuracy 40 Offensive Hacking 75 Defensive Hacking 55 Item Schematics ----------------- Imp. Treads | -8/Materials | Extracted Lgt. Deuterium Engine | -8/Materials | Extracted Tractor Beam | -8/Materials | Extracted Hcp. Matter Pod | -8/Materials | Extracted Beam Rifle | -8/Materials | Extracted Imp. Signal Interpreter | -8/Materials | Extracted Imp. Weapon Shielding | -8/Materials | Extracted Weight Redist. System | -8/Materials | Extracted Adv. Treads | -8/Materials | Extracted VTOL Module | -8/Materials | Extracted Imp. Hacking Suite | -7/Factory | Hacked Imp. Component Analysis Suite | -7/Factory | Hacked Adv. Shield Generator | -7/Factory | Hacked Imp. Hardlight Generator | -7/Factory | Hacked Remote Datajack | -7/Factory | Scanalyzed Cld. VTOL Module | -7/Factory | Scanalyzed Imp. System Shield | -7/Factory | Hacked Imp. System Backup Module | -7/Factory | Hacked Adv. Terrain Scanner | -7/Factory | Hacked Lgt. Fission Core | -7/Factory | Hacked Lrn. Terrain Scanner | -7/Factory | Hacked Adv. Cooling System | -7/Factory | Hacked Imp. Maneuvering Thrusters | -7/Factory | Hacked Disruptor Cannon | -7/Factory | Hacked Imp. Particle Charger | -7/Factory | Hacked Microactuators | -7/Factory | Hacked Cmb. Airjet | -7/Factory | Hacked Lgt. Nuclear Core | -7/Factory | Hacked KE Penetrator | -7/Factory | Hacked Hvy. Pick | -7/Factory | Hacked Adv. Melee Analysis Suite | -7/Factory | Scanalyzed Neutrino Core | -7/Factory | Hacked Fusion Compressor | -7/Factory | Hacked Riot Gun | -7/Zion | Free Battle Rifle | -7/Zion | Free Slug Cannon | -7/Zion | Free Flamer | -7/Zion | Free Matter Compressor | -6/Factory | Hacked System Restoration Module | -6/Factory | Hacked Corruption Screen | -6/Factory | Hacked Angular Momentum Engine | -6/Factory | Hacked Enh. Fission Core | -6/Factory | Hacked 0b10 Decoder Chip [Looter] | -6/Factory | Scanalyzed 0b10 Decoder Chip [Scout] | -6/Factory | Scanalyzed Cld. Plasma Cannon | -6/Factory | Scanalyzed System Backup Module | -6/Factory | Scanalyzed Nuclear Pulse Thruster | -6/Factory | Hacked Force Lance | -6/Factory | Hacked Hvy. Treads | -6/Factory | Hacked Impulse Thruster | -6/Factory | Hacked Centrium Wheel | -6/Factory | Hacked Reaction Control System | -6/Factory | Hacked Dispersion Rifle | -6/Factory | Hacked Wave Gun | -6/Factory | Hacked Hvy. Flak Cannon | -6/Factory | Hacked Arm. Huge Wheel | -6/Factory | Extracted Hpw. Shock Rifle | -6/Factory | Extracted Weapon Shielding | -6/Factory | Extracted Deuterium Engine | -6/Factory | Extracted Hvy. Laser | -6/Factory | Extracted Fission Core | -6/Factory | Extracted Recoil Stabilizer | -6/Factory | Extracted Plasma Rifle | -6/Factory | Extracted Great Axe | -6/Factory | Extracted Hvy. Hammer | -6/Factory | Extracted Hcp. Battery | -6/Factory | Extracted Energy Well | -6/Factory | Extracted EM Pulse Cannon | -6/Factory | Extracted Assault Cannon | -6/Factory | Extracted Gravmag Array | -6/Factory | Extracted Adv. Weight Redist. System | -6/Factory | Extracted Enh. Nuclear Core | -6/Factory | Extracted Shock Absorption System | -6/Factory | Extracted Adv. ECM Suite | -6/Factory | Hacked Hvy. Siege Treads | -6/Factory | Hacked Adv. Hacking Suite | -6/Factory | Hacked Adv. System Shield | -6/Factory | Hacked Cld. Cesium-ion Thruster | -6/Factory | Hacked Exp. Terrain Scanner | -6/Factory | Hacked Imp. Core Analyzer | -6/Factory | Hacked Imp. Target Analyzer | -6/Factory | Hacked Imp. Dynamic Insulation System | -6/Factory | Hacked Imp. Launcher Guidance Computer | -6/Factory | Hacked Phase Gun | -6/Factory | Hacked Imp. Plasma Cutter | -6/Factory | Hacked Mic. Fission Core | -6/Factory | Hacked Mic. Nuclear Core | -6/Factory | Hacked Prc. Shock Rifle | -6/Factory | Scanalyzed Adv. Target Analyzer | -6/Factory | Hacked Adv. EMP Blaster | -6/Factory | Scanalyzed Rnf. Fission Core | -6/Factory | Hacked Power Sword | -6/Factory | Hacked Imp. Focal Shield | -6/Factory | Hacked Neutron Cannon | -6/Factory | Hacked Combat Drone Bay | -6/Data Miner | Free Lgt. Regenerative Plating | -6/Data Miner | Free Triangulator | -6/Data Miner | Free Exp. Targeting Computer | -6/Data Miner | Free Kinetic Spear | -6/Data Miner | Free Enh. Force Lance | -5/Factory | Hacked Adv. Component Analysis Suite | -5/Factory | Hacked Adv. Drone Bay | -5/Factory | Hacked Cmb. Antigrav System | -5/Factory | Hacked Exp. Cesium-ion Thruster | -5/Factory | Hacked EM Disruption Field | -5/Factory | Hacked Q-thruster | -5/Factory | Hacked Biometal Medium Treads | -5/Factory | Hacked EM Shield | -5/Factory | Hacked Thermal Shield | -5/Factory | Hacked Focal Shield | -5/Factory | Hacked Imp. Thermal Shield | -5/Factory | Hacked Adv. Thermal Shield | -5/Factory | Hacked Exp. Thermal Shield | -5/Factory | Scanalyzed Imp. Heavy Treads | -5/Factory | Hacked Matter Neutralizer | -5/Factory | Hacked Smartbomb Launcher | -5/Factory | Hacked Robot Schematics ------------------ R-10 Processor | -6/Factory | Hacked R-06 Scavenger | -6/Factory | Hacked T-07 Excavator | -6/Factory | Hacked S-27 Virus | -6/Data Miner | Free G-50 Soldier | -6/Data Miner | Free L-41 Fighter | -6/Data Miner | Free H-66 Slayer | -6/Data Miner | Free P-70 Sage | -6/Data Miner | Free I-36 Angel | -6/Data Miner | Free I-47 Archangel | -6/Data Miner | Free Fabricated ------------ Cld. VTOL Module | x1 | -7/Factory Cld. VTOL Module | x1 | -7/Factory Lrn. Terrain Scanner | x1 | -7/Factory Imp. System Shield | x1 | -7/Factory Imp. System Shield | x1 | -7/Factory Force Lance | x1 | -6/Factory Cld. VTOL Module | x1 | -6/Factory Cld. Cesium-ion Thruster | x1 | -6/Factory Adv. System Shield | x1 | -6/Factory Cld. Cesium-ion Thruster | x1 | -6/Factory Adv. System Shield | x1 | -6/Factory Cld. Cesium-ion Thruster | x1 | -6/Factory Adv. Melee Analysis Suite | x1 | -6/Factory Adv. Melee Analysis Suite | x1 | -6/Factory Mic. Fission Core | x2 | -6/Factory Imp. Dynamic Insulation System | x2 | -6/Factory Cld. Cesium-ion Thruster | x1 | -6/Factory Alien Tech Used ----------------- Core Expander Achievements -------------- Whoosh! Challenges ------------ None RPGLIKE | -11 -10 -10 -10 -9 -8 -7 -7 -7 -7 -6 -6 -6 -6 -6 -6 -6 -5 -5 --------- Run | Scr Mat Min Exi Min Mat Fac Low Low Zio Pro Fac Was Fac Low Low Dat Pro Fac Levels Raised 21 | . . . 1 1 4 5 1 1 . 1 4 . . 1 . 1 1 . XP Earned 38749 | 6000 750 500 350 1643 7129 6992 1150 1414 453 1850 4791 67 982 597 880 534 1449 1218 XP Spent 37350 | . . 240 7220 . 5240 6690 4560 . 800 2130 2300 3700 . . . 2900 170 1400 Upgrades 48 | . . 3 14 . 9 7 6 . 1 2 1 2 . . . 1 1 1 Power Slot 1 | . . . 1 . . . . . . . . . . . . . . . Propulsion Slot 4 | . . . 2 . . 1 . . . . . . . . . . . 1 Utility Slot 9 | . . . 3 . 1 1 . . . 1 1 1 . . . 1 . . Weapon Slot 3 | . . . 1 . . . . . 1 . . 1 . . . . . . Heat Dissipation 8 | . . . 2 . 1 2 3 . . . . . . . . . . . Energy Generation 5 | . . . 1 . 2 1 1 . . . . . . . . . . . Mass Support 4 | . . 1 1 . 1 1 . . . . . . . . . . . . Inventory Capacity 6 | . . . 3 . . 1 2 . . . . . . . . . . . Terrain Scan Density 4 | . . 2 . . . . . . . 1 . . . . . . 1 . Hack Attack % 2 | . . . . . 2 . . . . . . . . . . . . . Hack Defense % 2 | . . . . . 2 . . . . . . . . . . . . . Protomatter Created 2547 | . . . . 25 49 174 . 141 . 267 560 . 228 217 413 76 197 200 Integrity Restored 4892 | . . 72 . 54 15 522 . 383 . 414 1119 . 594 360 482 228 582 67 Core 4107 | . . 66 . 43 . 522 . 353 . 190 934 . 594 209 391 228 510 67 Parts 785 | . . 6 . 11 15 . . 30 . 224 185 . . 151 91 . 72 . Protomatter Decayed 1655 | . . 51 . . 44 . . 13 . 123 179 . 30 92 595 . 413 115 Game ------ Seed ModifiedSpikedTerrabomb Manual? 0 Play Time 05:29:00 Cumulative 151.0 hours Start 2021.06.04 @ 14:18:54 End 2021.06.04 @ 20:50:20 Sessions 1 Manual Loads 0 Difficulty Explorer Special Mode Winter2019/RPGLIKE Game No. 31 Rogue 12 Adventurer 0 Explorer 19 Win Type - Total 2 Types 0/0/2/0/0/0/0/0/0 Lore% 69 Gallery% 76 Achievement% 66 Wizard Run 0 Options --------- ASCII 0 Keyboard 0 Movement Mouse Keybinds 0 Fullscreen 2 Font 24/Cog Map View 76x50 Tactical HUD 1 Map Filters NONE Filters NONE Steam 1 RUN: 483aec0e-e1bd-4061-9ae6-4d75cf0fad50